fUST/lending_fUST_20260410
["ID","MTS","AMOUNT","RATE_DAILY","PERIOD"]
[420191416,1775766652731,-500.0,0.00019726,18]
[420191417,1775766652744,-500.0,0.00019726,18]
[420191418,1775766652754,-500.0,0.00019726,18]
[420191419,1775766652770,-683.85,0.00019726,18]
[420191420,1775766652780,-500.0,0.00019726,18]
[420191421,1775766652789,-500.0,0.00019726,18]
[420191422,1775766652799,-644.38,0.00019726,18]
[420191423,1775766652808,-500.0,0.00019726,18]
[420191424,1775766652818,-500.0,0.00019726,18]
[420191425,1775766652827,-628.73476539,0.00019726,18]
[420191426,1775766652848,-500.0,0.00019726,18]
[420191427,1775766652868,-500.0,0.00019726,18]
[420191428,1775766652877,-500.0,0.00019726,18]
[420191429,1775766652886,-500.0,0.00019726,18]
[420191430,1775766652895,-500.0,0.00019726,18]
[420191431,1775766652905,-526.96,0.00019726,18]
[420191432,1775766652915,-500.0,0.00019726,18]
[420191433,1775766652925,-500.0,0.00019726,18]
[420191434,1775766652935,-500.0,0.00019726,18]
[420191435,1775766652944,-500.0,0.00019726,18]
[420191436,1775766652954,-500.0,0.00019726,18]
[420191437,1775766652964,-500.0,0.00019726,18]
[420191438,1775766652973,-500.0,0.00019726,18]
[420191439,1775766652983,-238.0372748,0.00019726,18]
[420191440,1775766652992,-500.0,0.00019726,18]
[420191441,1775766653002,-500.0,0.00019726,18]
[420191442,1775766653011,-829.51,0.00019726,18]
[420191443,1775766653022,-500.0,0.00019726,18]
[420191444,1775766653051,-554.19,0.00019726,18]
[420191445,1775766653061,-500.0,0.00019726,18]
[420191446,1775766653071,-500.0,0.00019726,18]
[420191447,1775766653081,-500.0,0.00019726,18]
[420191448,1775766653090,-533.08,0.00019726,18]
[420191449,1775766653100,-500.0,0.00019726,18]
[420191450,1775766653110,-500.0,0.00019726,18]
[420191451,1775766653119,-500.0,0.00019726,18]
[420191452,1775766653128,-500.0,0.00019726,7]
[420191453,1775766653138,-547.55,0.00019726,18]
[420191454,1775766653152,-889.68,0.00019726,18]
[420191455,1775766653178,-552.09,0.00019726,18]
[420191456,1775766653187,-804.52,0.00019726,18]
[420191457,1775766653199,-500.0,0.00019726,18]
[420191458,1775766653208,-500.0,0.00019726,18]
[420191459,1775766653217,-500.0,0.00019726,18]
[420191460,1775766653226,-500.0,0.00019726,18]
[420191461,1775766653235,-500.0,0.00019726,18]
[420191462,1775766653245,-500.0,0.00019726,18]
[420191463,1775766653255,-500.0,0.00019726,18]
[420191464,1775766653265,-500.0,0.00019726,18]
[420191465,1775766653297,-500.0,0.00019726,18]
[420191466,1775766653307,-500.0,0.00019726,18]
[420191467,1775766653317,-500.0,0.00019726,18]
[420191468,1775766653327,-500.0,0.00019726,18]
[420191469,1775766653339,-500.0,0.00019726,18]
[420191470,1775766653350,-500.0,0.00019726,18]
[420191471,1775766653359,-500.0,0.00019726,18]
[420191472,1775766653385,-500.0,0.00019726,18]
[420191473,1775766653394,-1468.21,0.00019726,18]
[420191474,1775766653404,-500.0,0.00019726,18]
[420191475,1775766653413,-500.0,0.00019726,18]
[420191476,1775766653424,-558.75,0.00019726,18]
[420191477,1775766653433,-541.26157278,0.00019726,18]
[420191478,1775766653444,-648.9,0.00019726,18]
[420191479,1775766653488,-1000.0,0.00019726,2]
[420191480,1775766653498,-500.0,0.00019726,18]
[420191481,1775766653507,-500.0,0.00019726,18]
[420191482,1775766653518,-500.0,0.00019726,18]
[420191483,1775766653528,-500.0,0.00019726,18]
[420191484,1775766653538,-500.0,0.00019726,18]
[420191485,1775766653560,-2771.98,0.00019726,18]
[420191486,1775766653571,-500.0,0.00019726,18]
[420191487,1775766653580,-999.54,0.00019726,18]
[420191488,1775766653590,-500.0,0.00019726,18]
[420191489,1775766653599,-838.45,0.00019726,18]
[420191490,1775766653609,-500.0,0.00019726,18]
[420191491,1775766653620,-500.0,0.00019726,18]
[420191492,1775766653684,-500.0,0.00019726,18]
[420191493,1775766653698,-1899.82,0.00019726,18]
[420191494,1775766653708,-500.0,0.00019726,18]
[420191495,1775766653719,-500.0,0.00019726,18]
[420191496,1775766653734,-500.0,0.00019726,18]
[420191497,1775766653746,-2235.08,0.00019726,18]
[420191498,1775766653756,-500.0,0.00019726,7]
[420191499,1775766653767,-500.0,0.00019726,18]
[420191500,1775766653777,-500.0,0.00019726,18]
[420191501,1775766653786,-912.12,0.00019726,18]
[420191502,1775766653801,-500.0,0.00019726,18]
[420191503,1775766653821,-2544.6,0.00019726,18]
[420191504,1775766653832,-500.0,0.00019726,18]
[420191505,1775766653842,-806.95,0.00019726,18]
[420191506,1775766653891,-1370.28,0.00019726,18]
[420191507,1775766653906,-500.0,0.00019726,18]
[420191508,1775766653916,-1525.55,0.00019726,18]
[420191509,1775766653931,-500.0,0.00019726,18]
[420191510,1775766653940,-824.45,0.00019726,18]
[420191511,1775766653949,-500.0,0.00019726,18]
[420191512,1775766653958,-550.46,0.00019726,18]
[420191513,1775766653967,-500.0,0.00019726,18]
[420191514,1775766653978,-500.0,0.00019726,18]
[420191515,1775766653987,-500.0,0.00019726,18]
[420191516,1775766653996,-556.92796788,0.00019726,18]
[420191517,1775766654006,-500.0,0.00019726,18]
[420191518,1775766654015,-500.0,0.00019726,18]
[420191519,1775766654024,-500.0,0.00019726,18]
[420191520,1775766654034,-978.3,0.00019726,18]
[420191521,1775766654046,-500.0,0.00019726,18]
[420191522,1775766654056,-500.0,0.00019726,18]
[420191523,1775766654065,-1172.16,0.00019726,18]
[420191524,1775766654091,-500.0,0.00019726,18]
[420191525,1775766654101,-1515.63,0.00019726,18]
[420191526,1775766654110,-1317.81,0.00019726,18]
[420191527,1775766654119,-316.34124508,0.00019726,18]
[420191528,1775766654129,-1519.7,0.00019726,18]
[420191529,1775766654138,-500.0,0.00019726,18]
[420191530,1775766654147,-500.0,0.00019726,18]
[420191531,1775766654158,-500.0,0.00019726,18]
[420191532,1775766654185,-500.0,0.00019726,18]
[420191533,1775766654194,-500.0,0.00019726,18]
[420191534,1775766654203,-1813.31,0.00019726,18]
[420191535,1775766654212,-500.0,0.00019726,18]
[420191536,1775766654221,-500.0,0.00019726,18]
[420191537,1775766654230,-749.15,0.00019726,18]
[420191538,1775766654239,-549.45,0.00019726,18]
[420191539,1775766654249,-500.0,0.00019726,18]
[420191540,1775766654293,-500.0,0.00019726,18]
[420191541,1775766654303,-500.0,0.00019726,18]
[420191542,1775766654312,-219.29487102,0.00019726,18]
[420191543,1775766654325,-733.2,0.00019726,18]
[420191544,1775766654334,-854.08,0.00019726,18]
[420191545,1775766654343,-3069.05,0.00019726,18]
[420191546,1775766654355,-500.0,0.00019726,18]
[420191547,1775766654364,-500.0,0.00019726,18]
[420191548,1775766654374,-1330.02,0.00019726,18]
[420191549,1775766654383,-904.26,0.00019726,18]
[420191550,1775766654396,-500.0,0.00019726,18]
[420191551,1775766654405,-500.0,0.00019726,18]
[420191552,1775766654415,-500.0,0.00019726,18]
[420191553,1775766654445,-500.0,0.00019726,18]
[420191554,1775766654455,-762.3,0.00019726,18]
[420191555,1775766654464,-955.14,0.00019726,18]
[420191556,1775766654474,-2718.11,0.00019726,18]
[420191557,1775766654483,-500.0,0.00019726,18]
[420191558,1775766654493,-500.0,0.00019726,18]
[420191559,1775766654503,-436.75633097,0.00019726,18]
[420191560,1775766654512,-500.0,0.00019726,18]
[420191561,1775766654522,-813.16,0.00019726,18]
[420191562,1775766654531,-1258.82,0.00019726,18]
[420191563,1775766654542,-824.13,0.00019726,18]
[420191564,1775766654574,-500.0,0.00019726,18]
[420191565,1775766654583,-500.0,0.00019726,18]
[420191566,1775766654592,-500.0,0.00019726,18]
[420191567,1775766654601,-746.65,0.00019726,18]
[420191568,1775766654610,-500.0,0.00019726,18]
[420191569,1775766654619,-500.0,0.00019726,18]
[420191570,1775766654628,-1120.76,0.00019726,18]
[420191571,1775766654637,-550.38,0.00019726,18]
[420191572,1775766654646,-516.71128592,0.00019726,18]
[420191573,1775766654656,-1224.73,0.00019726,18]
[420191574,1775766654665,-500.0,0.00019726,18]
[420191575,1775766654674,-500.0,0.00019726,18]
[420191576,1775766654683,-1188.58,0.00019726,18]
[420191577,1775766654714,-500.0,0.00019726,18]
[420191578,1775766654723,-500.0,0.00019726,18]
[420191579,1775766654732,-1000.0,0.00019726,2]
[420191580,1775766654742,-1267.19,0.00019726,18]
[420191581,1775766654751,-500.0,0.00019726,18]
[420191582,1775766654760,-500.0,0.00019726,18]
[420191583,1775766654770,-500.0,0.00019726,18]
[420191584,1775766654779,-563.99,0.00019726,18]
[420191585,1775766654789,-4209.39,0.00019726,18]
[420191586,1775766654798,-500.0,0.00019726,18]
[420191587,1775766654807,-500.0,0.00019726,18]
[420191588,1775766654816,-500.0,0.00019726,10]
[420191589,1775766654826,-500.0,0.00019726,18]
[420191590,1775766654834,-2877.14,0.00019726,18]
[420191591,1775766654844,-192.17917286,0.00019726,18]
[420191592,1775766654878,-500.0,0.00019726,18]
[420191593,1775766654886,-500.0,0.00019726,18]
[420191594,1775766654895,-500.0,0.00019726,18]
[420191595,1775766654909,-500.0,0.00019726,18]
[420191596,1775766654918,-500.0,0.00019726,18]
[420191597,1775766654928,-2566.82,0.00019726,18]
[420191598,1775766654949,-681.05,0.00019726,18]
[420191599,1775766654958,-500.0,0.00019726,18]
[420191600,1775766654967,-500.0,0.00019726,18]
[420191601,1775766654976,-500.0,0.00019726,18]
[420191602,1775766654985,-500.0,0.00019726,18]
[420191603,1775766654994,-500.0,0.00019726,18]
[420191604,1775766655003,-2272.87,0.00019726,18]
[420191605,1775766655011,-500.0,0.00019726,18]
[420191606,1775766655021,-500.0,0.00019726,18]
[420191607,1775766655030,-726.02,0.00019726,18]
[420191608,1775766655039,-500.0,0.00019726,18]
[420191609,1775766655048,-500.0,0.00019726,18]
[420191610,1775766655057,-500.0,0.00019726,18]
[420191611,1775766655066,-500.0,0.00019726,18]
[420191612,1775766655076,-500.0,0.00019726,18]
[420191613,1775766655085,-500.0,0.00019726,18]
[420191614,1775766655094,-500.0,0.00019726,18]
[420191615,1775766655103,-1369.46,0.00019726,18]
[420191616,1775766655112,-660.23,0.00019726,18]
[420191617,1775766655121,-500.0,0.00019726,18]
[420191618,1775766655130,-1451.36,0.00019726,18]
[420191619,1775766655139,-500.0,0.00019726,18]
[420191620,1775766655150,-500.0,0.00019726,18]
[420191621,1775766655179,-834.78,0.00019726,18]
[420191622,1775766655188,-500.0,0.00019726,18]
[420191623,1775766655197,-535.65,0.00019726,18]
[420191624,1775766655206,-6193.33,0.00019726,18]
[420191625,1775766655215,-500.0,0.00019726,18]
[420191626,1775766655224,-500.0,0.00019726,18]
[420191627,1775766655233,-561.17584874,0.00019726,18]
[420191628,1775766655257,-535.43,0.00019726,18]
[420191629,1775766655272,-882.45,0.00019726,18]
[420191630,1775766655282,-500.0,0.00019726,18]
[420191631,1775766655291,-4868.55,0.00019726,18]
[420191632,1775766655299,-500.0,0.00019726,18]
[420191633,1775766655310,-1814.94,0.00019726,18]
[420191634,1775766655318,-500.0,0.00019726,18]
[420191635,1775766655327,-500.0,0.00019726,18]
[420191636,1775766655355,-662.26,0.00019726,18]
[420191637,1775766655364,-500.0,0.00019726,18]
[420191638,1775766655374,-946.89,0.00019726,18]
[420191639,1775766655383,-500.0,0.00019726,18]
[420191640,1775766655392,-318.27944112,0.00019726,18]
[420191641,1775766655402,-3445.23,0.00019726,18]
[420191642,1775766655412,-500.0,0.00019726,18]
[420191643,1775766655444,-500.0,0.00019726,18]
[420191644,1775766655453,-829.97,0.00019726,18]
[420191645,1775766655462,-500.0,0.00019726,18]
[420191646,1775766655471,-526.24,0.00019726,18]
[420191647,1775766655480,-3068.48,0.00019726,18]
[420191648,1775766655489,-500.0,0.00019726,18]
[420191649,1775766655499,-500.0,0.00019726,18]
[420191650,1775766655569,-936.3,0.00019726,18]
[420191651,1775766655578,-500.0,0.00019726,18]
[420191652,1775766655589,-895.72,0.00019726,18]
[420191653,1775766655603,-500.0,0.00019726,18]
[420191654,1775766655612,-614.65,0.00019726,18]
[420191655,1775766655622,-500.0,0.00019726,18]
[420191656,1775766655639,-426.91012333,0.00019726,18]
[420191657,1775766655649,-500.0,0.00019726,18]
[420191658,1775766655665,-500.0,0.00019726,18]
[420191659,1775766655678,-500.0,0.00019726,18]
[420191660,1775766655703,-1146.61,0.00019726,18]
[420191661,1775766655730,-500.0,0.00019726,18]
[420191662,1775766655740,-4391.38,0.00019726,18]
[420191663,1775766655750,-500.0,0.00019726,18]
[420191664,1775766655764,-500.0,0.00019726,18]
[420191665,1775766655774,-500.0,0.00019726,10]
[420191666,1775766655790,-562.43,0.00019726,18]
[420191667,1775766655801,-500.0,0.00019726,18]
[420191668,1775766655810,-1959.62,0.00019726,18]
[420191669,1775766655820,-672.44,0.00019726,18]
[420191670,1775766655831,-500.0,0.00019726,18]
[420191671,1775766655845,-823.87,0.00019726,18]
[420191672,1775766655855,-500.0,0.00019726,18]
[420191673,1775766655864,-416.3571097,0.00019726,18]
[420191674,1775766655876,-500.0,0.00019726,18]
[420191675,1775766655889,-500.0,0.00019726,18]
[420191676,1775766655904,-500.0,0.00019726,18]
[420191677,1775766655913,-500.0,0.00019726,18]
[420191678,1775766655923,-567.98,0.00019726,2]
[420191679,1775766655932,-1414.24,0.00019726,18]
[420191680,1775766655945,-2772.16,0.00019726,18]
[420191681,1775766655956,-500.0,0.00019726,18]
[420191682,1775766655966,-3885.4,0.00019726,18]
[420191683,1775766655979,-500.0,0.00019726,18]
[420191684,1775766655989,-685.82,0.00019726,18]
[420191685,1775766655999,-3710.64,0.00019726,18]
[420191686,1775766656008,-500.0,0.00019726,18]
[420191687,1775766656021,-500.0,0.00019726,18]
[420191688,1775766656030,-500.0,0.00019726,18]
[420191689,1775766656047,-534.61,0.00019726,18]
[420191690,1775766656056,-500.0,0.00019726,18]
[420191691,1775766656066,-1416.98,0.00019726,18]
[420191692,1775766656075,-500.0,0.00019726,18]
[420191693,1775766656084,-1493.89,0.00019726,18]
[420191694,1775766656094,-500.0,0.00019726,18]
[420191695,1775766656103,-500.0,0.00019726,18]
[420191696,1775766656116,-708.81,0.00019726,18]
[420191697,1775766656139,-500.0,0.00019726,18]
[420191698,1775766656149,-500.0,0.00019726,18]
[420191699,1775766656158,-500.0,0.00019726,18]
[420191700,1775766656167,-500.0,0.00019726,18]
[420191701,1775766656176,-500.0,0.00019726,18]
[420191702,1775766656186,-1287.09,0.00019726,18]
[420191703,1775766656195,-2674.21,0.00019726,18]
[420191704,1775766656204,-166.6054163,0.00019726,18]
[420191705,1775766656214,-1078.72,0.00019726,18]
[420191706,1775766656223,-754.28,0.00019726,18]
[420191707,1775766656233,-500.0,0.00019726,18]
[420191708,1775766656242,-500.0,0.00019726,18]
[420191709,1775766656251,-548.64,0.00019726,18]
[420191710,1775766656261,-500.0,0.00019726,18]
[420191711,1775766656270,-1305.51,0.00019726,18]
[420191712,1775766656279,-744.62,0.00019726,18]
[420191713,1775766656294,-637.7,0.00019726,18]
[420191714,1775766656320,-500.0,0.00019726,18]
[420191715,1775766656330,-832.3,0.00019726,18]
[420191716,1775766656340,-4558.28,0.00019726,18]
[420191717,1775766656351,-500.0,0.00019726,18]
[420191718,1775766656361,-500.0,0.00019726,18]
[420191719,1775766656371,-500.0,0.00019726,18]
[420191720,1775766656382,-570.18,0.00019726,18]
[420191721,1775766656413,-500.0,0.00019726,18]
[420191722,1775766656423,-500.0,0.00019726,18]
[420191723,1775766656433,-500.0,0.00019726,18]
[420191724,1775766656443,-172.65615105,0.00019726,18]
[420191725,1775766656452,-500.0,0.00019726,18]
[420191726,1775766656462,-500.0,0.00019726,18]
[420191727,1775766656475,-500.0,0.00019726,18]
[420191728,1775766656504,-500.0,0.00019726,18]
[420191729,1775766656514,-1238.51,0.00019726,18]
[420191730,1775766656524,-500.0,0.00019726,18]
[420191731,1775766656534,-500.0,0.00019726,18]
[420191732,1775766656543,-500.0,0.00019726,18]
[420191733,1775766656553,-500.0,0.00019726,18]
[420191734,1775766656562,-4694.49,0.00019726,18]
[420191735,1775766656571,-590.05,0.00019726,18]
[420191736,1775766656581,-500.0,0.00019726,18]
[420191737,1775766656590,-500.0,0.00019726,18]
[420191738,1775766656600,-985.9,0.00019726,18]
[420191739,1775766656610,-977.31,0.00019726,18]
[420191740,1775766656620,-500.0,0.00019726,18]
[420191741,1775766656629,-2267.05,0.00019726,18]
[420191742,1775766656639,-1858.85,0.00019726,18]
[420191743,1775766656649,-1003.71,0.00019726,18]
[420191744,1775766656658,-500.0,0.00019726,18]
[420191745,1775766656667,-500.0,0.00019726,11]
[420191746,1775766656677,-11765.07,0.00019726,18]
[420191747,1775766656686,-4361.65,0.00019726,18]
[420191748,1775766656696,-500.0,0.00019726,18]
[420191749,1775766656705,-1856.84,0.00019726,18]
[420191750,1775766656715,-533.93,0.00019726,18]
[420191751,1775766656724,-500.0,0.00019726,18]
[420191752,1775766656734,-500.0,0.00019726,18]
[420191753,1775766656743,-500.0,0.00019726,18]
[420191754,1775766656753,-500.0,0.00019726,18]
[420191755,1775766656763,-500.0,0.00019726,18]
[420191756,1775766656794,-2104.89,0.00019726,18]
[420191757,1775766656816,-585.97,0.00019726,18]
[420191758,1775766656825,-500.0,0.00019726,18]
[420191759,1775766656834,-3395.96,0.00019726,18]
[420191760,1775766656852,-1427.81,0.00019726,18]
[420191761,1775766656862,-10016.59,0.00019726,18]
[420191762,1775766656897,-2929.8,0.00019726,18]
[420191763,1775766656906,-415.19364864,0.00019726,18]
[420191764,1775766656916,-750.56,0.00019726,18]
[420191765,1775766656926,-604.91,0.00019726,18]
[420191766,1775766656937,-524.9,0.00019726,18]
[420191767,1775766656950,-3291.29,0.00019726,18]
[420191768,1775766656967,-631.07,0.00019726,18]
[420191769,1775766656976,-1282.71,0.00019726,18]
[420191770,1775766656990,-500.0,0.00019726,18]
[420191771,1775766657002,-3430.82,0.00019726,18]
[420191772,1775766657064,-500.0,0.00019726,18]
[420191773,1775766657077,-500.0,0.00019726,18]
[420191774,1775766657087,-500.0,0.00019726,18]
[420191775,1775766657097,-500.0,0.00019726,18]
[420191776,1775766657116,-4330.12,0.00019726,18]
[420191777,1775766657138,-500.0,0.00019726,18]
[420191778,1775766657147,-3992.24,0.00019726,18]
[420191779,1775766657163,-500.0,0.00019726,18]
[420191780,1775766657173,-1093.98,0.00019726,18]
[420191781,1775766657189,-500.0,0.00019726,18]
[420191782,1775766657199,-500.0,0.00019726,18]
[420191783,1775766657209,-608.9,0.00019726,18]
[420191784,1775766657227,-502.78,0.00019726,2]
[420191785,1775766657237,-624.47,0.00019726,18]
[420191786,1775766657254,-500.0,0.00019726,2]
[420191787,1775766657264,-3264.76,0.00019726,18]
[420191788,1775766657277,-1416.636,0.00019743,2]
[420191789,1775766657286,-644.0,0.00019743,2]
[420191790,1775766657295,-2206.0,0.00019743,2]
[420191791,1775766657305,-751.46,0.00019743,2]
[420191792,1775766657315,-184.0,0.00019743,2]
[420191793,1775766657324,-441.0,0.00019743,2]
[420191794,1775766657334,-200.0,0.00019743,2]
[420191795,1775766657343,-231.0,0.00019937,2]
[420191796,1775766657354,-367.66032769,0.0001995,2]
[420191797,1775766657368,-403.62,0.0001996,3]
[420191798,1775766657378,-500.0,0.00019999,18]
[420191799,1775766657387,-500.0,0.00019999,18]
[420191800,1775766657403,-500.0,0.00019999,18]
[420191801,1775766657414,-500.0,0.00019999,18]
[420191802,1775766657424,-500.0,0.00019999,18]
[420191803,1775766657471,-500.0,0.00019999,18]
[420191804,1775766657481,-500.0,0.00019999,18]
[420191805,1775766657493,-500.0,0.00019999,18]
[420191806,1775766657507,-500.0,0.00019999,18]
[420191807,1775766657516,-500.0,0.00019999,18]
[420191808,1775766657536,-500.0,0.00019999,18]
[420191809,1775766657545,-500.0,0.00019999,18]
[420191810,1775766657555,-500.0,0.00019999,18]
[420191811,1775766657564,-500.0,0.00019999,18]
[420191812,1775766657576,-500.0,0.00019999,18]
[420191813,1775766657585,-500.0,0.00019999,18]
[420191814,1775766657603,-500.0,0.00019999,18]
[420191815,1775766657612,-500.0,0.00019999,18]
[420191816,1775766657622,-500.0,0.00019999,18]
[420191817,1775766657632,-500.89,0.00019999,18]
[420191818,1775766657641,-250.0,0.0002,7]
[420191819,1775766657651,-4111.86096839,0.0002,2]
[420191820,1775766657661,-3554.3286,0.0002,18]
[420191821,1775766657671,-600.0,0.0002,2]
[420191822,1775766657681,-564.9865239,0.0002,18]
[420191823,1775766657690,-564.9865239,0.0002,18]
[420191824,1775766657701,-564.9865239,0.0002,18]
[420191825,1775766657710,-564.9865239,0.0002,18]
[420191826,1775766657721,-564.9865239,0.0002,18]
[420191827,1775766657731,-564.9865239,0.0002,18]
[420191828,1775766657740,-2221.4554,0.0002,18]
[420191829,1775766657750,-500.0,0.0002,18]
[420191830,1775766657759,-500.0,0.0002,18]
[420191831,1775766657769,-500.0,0.0002,18]
[420191832,1775766657778,-500.0,0.0002,18]
[420191833,1775766657811,-500.0,0.0002,18]
[420191834,1775766657820,-683.85,0.0002,18]
[420191835,1775766657830,-500.0,0.0002,18]
[420191836,1775766657839,-500.0,0.0002,18]
[420191837,1775766657849,-644.38,0.0002,18]
[420191838,1775766657860,-500.0,0.0002,18]
[420191839,1775766657870,-500.0,0.0002,18]
[420191840,1775766657891,-500.0,0.0002,18]
[420191841,1775766657927,-388.8,0.0002,2]
[420191842,1775766657937,-500.0,0.0002,18]
[420191843,1775766657947,-500.0,0.0002,18]
[420191844,1775766657956,-500.0,0.0002,18]
[420191845,1775766657971,-500.0,0.0002,18]
[420191846,1775766657980,-526.96,0.0002,18]
[420191847,1775766657993,-500.0,0.0002,18]
[420191848,1775766658002,-500.0,0.0002,18]
[420191849,1775766658012,-500.0,0.0002,18]
[420191850,1775766658022,-500.0,0.0002,18]
[420191851,1775766658032,-500.0,0.0002,18]
[420191852,1775766658044,-500.0,0.0002,18]
[420191853,1775766658073,-500.0,0.0002,18]
[420191854,1775766658083,-500.0,0.0002,18]
[420191855,1775766658092,-497.33590736,0.0002,18]
[420191856,1775766658102,-829.51,0.0002,18]
[420191857,1775766658113,-500.0,0.0002,18]
[420191858,1775766658125,-500.0,0.0002,18]
[420191859,1775766658366,-554.19,0.0002,18]
[420191860,1775766658376,-500.0,0.0002,18]
[420191861,1775766658408,-284.57348322,0.0002,18]
[420191862,1775766658422,-533.08,0.0002,18]
[420191863,1775766658433,-500.0,0.0002,18]
[420191864,1775766658443,-500.0,0.0002,18]
[420191865,1775766658458,-500.0,0.0002,18]
[420191866,1775766658471,-500.0,0.0002,7]
[420191867,1775766658530,-547.55,0.0002,18]
[420191868,1775766658540,-889.68,0.0002,18]
[420191869,1775766658550,-552.09,0.0002,18]
[420191870,1775766658566,-804.52,0.0002,18]
[420191871,1775766658576,-500.0,0.0002,18]
[420191872,1775766658591,-500.0,0.0002,18]
[420191873,1775766658601,-500.0,0.0002,18]
[420191874,1775766658611,-500.0,0.0002,18]
[420191875,1775766658620,-500.0,0.0002,18]
[420191876,1775766658630,-500.0,0.0002,18]
[420191877,1775766658640,-500.0,0.0002,18]
[420191878,1775766658649,-500.0,0.0002,18]
[420191879,1775766658659,-500.0,0.0002,18]
[420191880,1775766658669,-500.0,0.0002,18]
[420191881,1775766658679,-500.0,0.0002,18]
[420191882,1775766658690,-500.0,0.0002,18]
[420191883,1775766658935,-500.0,0.0002,18]
[420191884,1775766658964,-500.0,0.0002,18]
[420191885,1775766658974,-500.0,0.0002,18]
[420191886,1775766658983,-500.0,0.0002,18]
[420191887,1775766658992,-1468.21,0.0002,18]
[420191888,1775766659002,-500.0,0.0002,18]
[420191889,1775766659012,-500.0,0.0002,18]
[420191890,1775766659022,-558.75,0.0002,18]
[420191891,1775766659043,-648.9,0.0002,18]
[420191892,1775766659057,-823.38,0.0002,2]
[420191893,1775766659066,-1000.0,0.0002,2]
[420191894,1775766659075,-500.0,0.0002,18]
[420191895,1775766659084,-500.0,0.0002,18]
[420191896,1775766659094,-500.0,0.0002,18]
[420191897,1775766659103,-500.0,0.0002,18]
[420191898,1775766659112,-1199.25,0.0002,2]
[420191899,1775766659121,-500.0,0.0002,18]
[420191900,1775766659131,-2771.98,0.0002,18]
[420191901,1775766659140,-500.0,0.0002,18]
[420191902,1775766659160,-999.54,0.0002,18]
[420191903,1775766659195,-500.0,0.0002,18]
[420191904,1775766659205,-838.45,0.0002,18]
[420191905,1775766659214,-500.0,0.0002,18]
[420191906,1775766659226,-500.0,0.0002,18]
[420191907,1775766659235,-500.0,0.0002,18]
[420191908,1775766659244,-1899.82,0.0002,18]
[420191909,1775766659254,-500.0,0.0002,18]
[420191910,1775766659266,-161.61253958,0.0002,18]
[420191911,1775766659275,-500.0,0.0002,18]
[420191912,1775766659284,-2235.08,0.0002,18]
[420191913,1775766659293,-500.0,0.0002,7]
[420191914,1775766659302,-500.0,0.0002,18]
[420191915,1775766659312,-500.0,0.0002,18]